fUST/lending_fUST_20240429
["ID","MTS","AMOUNT","RATE_DAILY","PERIOD"]
[324871148,1714385433075,-154.82968734,0.00017293,2]
[324871149,1714385433085,-500.0,0.00017293,2]
[324871150,1714385433094,-1676.92552467,0.00017294,2]
[324871151,1714385433103,-520.65,0.00017294,2]
[324871152,1714385433114,-500.0,0.00017294,2]
[324871153,1714385433124,-500.0,0.00017294,2]
[324871154,1714385433134,-154.82968734,0.00017294,2]
[324871155,1714385433143,-500.0,0.00017295,2]
[324871156,1714385433152,-500.0,0.00017295,2]
[324871157,1714385433161,-500.0,0.00017295,2]
[324871158,1714385433170,-500.0,0.00017295,2]
[324871159,1714385433179,-500.0,0.00017295,2]
[324871160,1714385433188,-288.39032908,0.00017295,2]
[324871161,1714385433197,-500.0,0.00017295,2]
[324871162,1714385433206,-647.59794462,0.00017295,2]
[324871163,1714385433215,-170.23024443,0.00017295,2]
[324871164,1714385433226,-500.0,0.00017295,2]
[324871165,1714385433235,-607.06308227,0.00017295,2]
[324871166,1714385433245,-500.0,0.00017295,2]
[324871167,1714385433255,-500.0,0.00017295,2]
[324871168,1714385433264,-500.0,0.00017295,2]
[324871169,1714385433273,-500.0,0.00017295,2]
[324871170,1714385433282,-270.90042653,0.00017295,2]
[324871171,1714385433291,-500.0,0.00017295,2]
[324871172,1714385433300,-500.0,0.00017295,2]
[324871173,1714385433309,-500.0,0.00017295,2]
[324871174,1714385433318,-500.0,0.00017295,2]
[324871175,1714385433327,-500.0,0.00017295,2]
[324871176,1714385433337,-500.0,0.00017295,2]
[324871177,1714385433346,-500.0,0.00017295,2]
[324871178,1714385433355,-500.0,0.00017295,2]
[324871179,1714385433364,-500.0,0.00017295,2]
[324871180,1714385433373,-500.0,0.00017295,2]
[324871181,1714385433382,-500.0,0.00017295,2]
[324871182,1714385433392,-500.0,0.00017295,2]
[324871183,1714385433401,-573.44295148,0.00017295,2]
[324871184,1714385433410,-500.0,0.00017295,2]
[324871185,1714385433419,-520.99,0.00017295,2]
[324871186,1714385433428,-500.0,0.00017295,2]
[324871187,1714385433437,-500.0,0.00017295,2]
[324871188,1714385433446,-500.0,0.00017295,2]
[324871189,1714385433455,-500.0,0.00017295,2]
[324871190,1714385433464,-500.0,0.00017295,2]
[324871191,1714385433474,-500.40387787,0.00017295,2]
[324871192,1714385433484,-500.12952987,0.00017295,2]
[324871193,1714385433492,-500.0,0.00017295,2]
[324871194,1714385433501,-500.0,0.00017295,2]
[324871195,1714385433510,-500.0,0.00017295,2]
[324871196,1714385433519,-500.0,0.00017295,2]
[324871197,1714385433528,-204.52213411,0.00017295,2]
[324871198,1714385433537,-500.0,0.00017295,2]
[324871199,1714385433547,-500.0,0.00017295,2]
[324871200,1714385433556,-500.0,0.00017295,2]
[324871201,1714385433565,-262.13422985,0.00017295,2]
[324871202,1714385433575,-500.0,0.00017295,2]
[324871203,1714385433590,-323.25382167,0.00017295,2]
[324871204,1714385433599,-500.0,0.00017295,2]
[324871205,1714385433608,-484.58487953,0.00017295,2]
[324871206,1714385433616,-387.17618278,0.00017295,2]
[324871207,1714385433626,-500.0,0.00017295,2]
[324871208,1714385433636,-500.0,0.00017295,2]
[324871209,1714385433645,-272.63468662,0.00017296,2]
[324871210,1714385433654,-500.0,0.00017296,2]
[324871211,1714385433663,-500.0,0.00017296,2]
[324871212,1714385433675,-6131.63223118,0.00017297,2]
[324871213,1714385433684,-154.75239617,0.00017297,2]
[324871214,1714385433692,-500.0,0.00017298,2]
[324871215,1714385433702,-500.0,0.00017298,2]
[324871216,1714385433711,-500.0,0.00017298,2]
[324871217,1714385433720,-500.0,0.00017298,2]
[324871218,1714385433729,-500.0,0.00017298,2]
[324871219,1714385433738,-500.0,0.00017298,2]
[324871220,1714385433747,-500.0,0.00017298,2]
[324871221,1714385433756,-500.0,0.00017298,2]
[324871222,1714385433765,-500.0,0.00017298,2]
[324871223,1714385433774,-500.0,0.00017298,2]
[324871224,1714385433782,-1737.34,0.00017298,2]
[324871225,1714385433791,-500.0,0.00017298,2]
[324871226,1714385433800,-1670.13028239,0.00017299,2]
[324871227,1714385435346,154.76784823,0.00015063,2]
[324871302,1714385438912,-2304.7077517,0.00017299,2]
[324871304,1714385438922,-1547.6544079,0.00017299,2]
[324871306,1714385438931,-494.21171063,0.00017299,2]
[324871500,1714385440760,-228.84,0.00017295,2]
[324871502,1714385440770,-1243.12828937,0.00017299,2]
[324871504,1714385440779,-1737.34,0.00017299,2]
[324871506,1714385440790,-1737.34,0.00017299,2]
[324871508,1714385440800,-1737.34,0.00017299,2]
[324871510,1714385440809,-1737.34,0.00017299,2]
[324871512,1714385440818,-1737.34,0.00017299,2]
[324871514,1714385440828,-1737.34,0.00017299,2]
[324871516,1714385440837,-1737.34,0.00017299,2]
[324871518,1714385440846,-1737.34,0.00017299,2]
[324871520,1714385440855,-1737.34,0.00017299,2]
[324871522,1714385440864,-16771.61093458,0.000173,3]
[324871524,1714385440873,-75425.88176017,0.000173,2]
[324871844,1714385443955,-2776.5,0.000173,2]
[324872299,1714385448062,-689.57545868,0.00017299,2]
[324872301,1714385448072,-999.49473502,0.00017299,2]
[324872303,1714385448081,-1370.7569563,0.000173,2]
[324872515,1714385473345,222.84971408,0.00015063,2]
[324872516,1714386164755,466.16787958,9.999e-05,2]
[324872520,1714386258034,363.95014905,9.999e-05,2]
[324872521,1714386273994,363.77625771,9.999e-05,2]
[324872528,1714386440148,-7539.5357156,0.00014068,2]
[324872529,1714386440169,-309.34983401,0.00014628,2]
[324872530,1714386440189,-150.0,0.0001493,3]
[324872531,1714386440211,-300.0,0.00014999,2]
[324872532,1714386440233,-300.0,0.00014999,2]
[324872533,1714386440256,-312.89043206,0.00015,2]
[324872534,1714386440279,-939.34960788,0.00015,2]
[324872535,1714386440303,-2101.14247839,0.00015054,2]
[324872536,1714386440325,-942.67850047,0.00015149,2]
[324872537,1714386449151,-1545.95488538,0.00015149,2]
[324872582,1714386549121,-1383.31162295,0.00015149,2]
[324872583,1714386549142,-406.209453,0.0001519,2]
[324872584,1714386549162,-166.666666,0.00015287,2]
[324872585,1714386549183,-3669.6422991,0.00015473,2]
[324872586,1714386549203,-150.0,0.0001549,3]
[324872604,1714386633574,-3185.69693408,0.00015664,2]
[324873160,1714386638800,-939.34960788,0.00015663,2]
[324873162,1714386638810,-121.84666882,0.00015664,2]
[324873164,1714386638820,-1500.33911095,0.00016439,2]
[324873166,1714386638831,-565.90470413,0.00016439,2]
[324873190,1714386639064,-34.89866331,0.00016439,2]
[324873192,1714386639074,-312.89043206,0.00016439,2]
[324873194,1714386639083,-300.0,0.00016442,2]
[324873195,1714386639093,-417.0,0.00016443,2]
[324873197,1714386639102,-150.0,0.00016443,2]
[324873199,1714386639111,-306.0,0.00016806,2]
[324873201,1714386639120,-153.0,0.00016806,2]
[324873204,1714386639129,-153.0,0.00016806,2]
[324873207,1714386639139,-7934.04214632,0.00017,2]
[324873210,1714386639148,-1025.04188415,0.00017078,2]
[324873213,1714386639159,-3184.01496285,0.00017078,2]
[324873216,1714386639169,-153.0,0.00017078,2]
[324873218,1714386639178,-245.36034162,0.00017197,2]
[324873220,1714386639187,-2000.0,0.000172,2]
[324873222,1714386639196,-237.949,0.00017213,2]
[324873224,1714386639205,-1596.84725221,0.00017297,2]
[324873226,1714386639214,-1712.56059274,0.00017298,2]
[324873228,1714386639223,-57.27777269,0.00017298,2]
[324873230,1714386639234,-2147.73455586,0.00017298,2]
[324873684,1714386643735,-3055.96747167,0.00017298,2]
[324873686,1714386643745,-1090.16677877,0.00017298,2]
[324873688,1714386643755,-550.56357256,0.00017298,2]
[324873690,1714386643764,-356.03800079,0.00017298,2]
[324873692,1714386643774,-154.78330338,0.00017298,2]
[324873694,1714386643783,-500.0,0.00017299,2]
[324873696,1714386643793,-252.08170916,0.00017299,2]
[324873698,1714386643803,-8385.80546729,0.000173,3]
[324873700,1714386643813,-1566.19972541,0.000173,2]
[324873702,1714386643822,-673.87052026,0.000173,2]
[324873704,1714386643831,-15556.08699675,0.000173,2]
[324874005,1714386646797,-166.666666,0.00016368,2]
[324874007,1714386646806,-299.50121358,0.000173,2]
[324874060,1714387392795,717.86575868,9.999e-05,2]
[324874061,1714387546136,-939.34960788,0.00015,2]
[324874062,1714387546156,-312.89043206,0.00015,2]
[324874063,1714387546176,-291.838112,0.0001585,2]
[324874064,1714387546195,-77.2999593,0.00015874,2]
[324874065,1714387652156,-166.666666,0.0001598,2]
[324874066,1714387652178,-928.56039633,0.00016148,2]
[324874067,1714387652196,-417.0,0.00016803,2]
[324874068,1714387652215,-150.0,0.00016803,2]
[324874069,1714387652237,-300.0,0.00016997,2]
[324874070,1714387652262,-730.61014924,0.00016998,2]
[324874071,1714387652281,-514.7097,0.00016998,2]
[324874072,1714387652301,-565.66662071,0.00016998,2]
[324874073,1714387652319,-311.51358233,0.00016998,2]
[324874074,1714387652339,-5000.0,0.00017,2]
[324874075,1714387652358,-1719.01141092,0.00017,2]
[324874076,1714387694138,-6215.0307354,0.00017,2]
[324874077,1714387781107,214.6902989,0.00017,2]
[324874096,1714387831907,-300.0,0.00017098,2]
[324874097,1714387831917,-198.5,0.00017099,2]
[324874098,1714387831926,-2222.65903006,0.00017099,2]
[324874099,1714387831937,-5711.38311626,0.00017099,2]
[324874100,1714387831946,-416.05370393,0.000171,2]
[324874101,1714387831956,-87247.81184681,0.000171,2]
[324874187,1714387837899,-12336.13444926,0.000171,2]
[324874190,1714387837908,-225.4343209,0.000171,2]
[324874193,1714387837918,-69.02780078,0.00017298,2]
[324874196,1714387837929,-85.80188656,0.00017298,2]
[324874199,1714387837939,-272.70165246,0.00017299,2]
[324874202,1714387837948,-5.76605413,0.00017299,2]
[324874204,1714387837959,-1301.76691397,0.00017299,2]
[324874207,1714387837969,-4192.90273364,0.000173,3]
[324874209,1714387837979,-1928.05100239,0.000173,2]
[324874214,1714387837996,-4172.37667112,0.000173,2]
[324874217,1714387838008,-388244.87334825,0.000173,2]
[324874219,1714387838018,-153.0,0.000173,2]
[324874221,1714387838027,-153.0,0.000176,2]
[324874223,1714387838036,-153.0,0.000176,2]
[324874225,1714387838045,-153.0,0.000176,2]
[324874227,1714387838054,-264.0323399,0.000176,2]
[324874229,1714387838063,-620.0,0.00017774,2]
[324874231,1714387838073,-3134.48557274,0.00018,7]
[324874232,1714387838082,-189.36782433,0.00018,2]
[324874234,1714387838091,-313.81237793,0.00018,2]
[324874236,1714387838101,-153.0,0.00018394,2]
[324874238,1714387838110,-153.0,0.00018394,2]
[324874240,1714387838119,-153.0,0.00018394,2]
[324874242,1714387838128,-153.0,0.00018394,2]
[324874244,1714387838137,-153.0,0.0001845,2]
[324874246,1714387838147,-153.0,0.0001845,2]
[324874248,1714387838155,-153.0,0.0001845,2]
[324874249,1714387838164,-306.0,0.0001845,2]
[324874251,1714387838173,-153.0,0.0001845,2]
[324874253,1714387838182,-346.0160453,0.0001845,2]
[324874255,1714387838191,-603.57234398,0.000185,2]
[324874257,1714387838200,-620.0,0.00018663,2]
[324874259,1714387838209,-420.0,0.00018808,2]
[324874261,1714387838218,-5190.2680465,0.000189,2]
[324874263,1714387838227,-239.19602788,0.00019,2]
[324874265,1714387838236,-154.92253873,0.00019,2]
[324874266,1714387838246,-154.76784823,0.00019,2]
[324874268,1714387838255,-500.0,0.00019178,2]
[324874270,1714387838264,-500.0,0.00019178,2]
[324874272,1714387838273,-476.64196926,0.00019178,2]
[324874274,1714387838282,-651.52580286,0.00019178,2]
[324874276,1714387838292,-263.19761112,0.00019178,2]
[324874278,1714387838303,-500.0,0.00019178,2]
[324874280,1714387838312,-500.0,0.00019178,2]
[324874282,1714387838323,-500.0,0.00019178,2]
[324874283,1714387838332,-341.18959629,0.00019178,2]
[324874285,1714387838341,-500.0,0.00019178,2]
[324874287,1714387838354,-500.0,0.00019178,2]
[324874289,1714387838363,-500.0,0.00019178,2]
[324874291,1714387838372,-235.35100877,0.00019178,2]
[324874293,1714387838383,-644.56188475,0.00019178,2]
[324874295,1714387838392,-433.57033179,0.00019178,2]
[324874297,1714387838401,-500.0,0.00019178,2]
[324874299,1714387838411,-500.0,0.00019178,2]
[324874300,1714387838420,-500.0,0.00019178,2]
[324874302,1714387838429,-500.0,0.00019178,2]
[324874304,1714387838438,-500.0,0.00019178,2]
[324874306,1714387838448,-158.65087196,0.00019178,2]
[324874308,1714387838457,-500.0,0.00019178,2]
[324874310,1714387838466,-500.0,0.00019178,2]
[324874312,1714387838476,-500.0,0.00019178,2]
[324874314,1714387838485,-551.95,0.00019178,2]
[324874316,1714387838495,-500.0,0.00019178,2]
[324874318,1714387838504,-605.02194921,0.00019178,2]
[324874319,1714387838513,-500.0,0.00019178,2]
[324874321,1714387838523,-174.7574476,0.00019178,2]
[324874323,1714387838532,-181.80024617,0.00019178,2]
[324874333,1714387838664,-383.73017075,0.00019178,2]
[324874334,1714387838674,-500.0,0.00019178,2]
[324874335,1714387838683,-500.0,0.00019178,2]
[324874336,1714387838693,-500.0,0.00019178,2]
[324874337,1714387838702,-500.0,0.00019178,2]
[324874338,1714387838712,-203.90294588,0.00019178,2]
[324874339,1714387838721,-500.0,0.00019178,2]
[324874340,1714387838730,-500.0,0.00019178,2]
[324874341,1714387838740,-500.0,0.00019178,2]
[324874342,1714387838750,-500.0,0.00019178,2]
[324874343,1714387838759,-163.324046,0.00019178,2]
[324874344,1714387838768,-159.690485,0.00019178,2]
[324874345,1714387838778,-161.725064,0.00019178,2]
[324874346,1714387838787,-160.703891,0.00019178,2]
[324874347,1714387838797,-153.0,0.00019512,2]
[324874348,1714387838806,-620.0,0.00019596,2]
[324874349,1714387838815,-154.35997309,0.00019799,2]
[324874350,1714387838828,-417.0,0.00019803,2]
[324874351,1714387838838,-150.0,0.00019803,2]
[324874352,1714387838847,-154.82968734,0.0002,2]
[324874353,1714387838855,-320.78044824,0.0002,2]
[324874354,1714387838864,-241.68429594,0.0002,2]
[324874355,1714387838873,-329.93912296,0.0002,2]
[324874356,1714387838882,-80000.0,0.0002,2]
[324874357,1714387838892,-67415.61392424,0.0002,2]
[324874359,1714387838901,-285.19077408,0.0002,2]
[324874360,1714387838910,-278.30883524,0.0002,2]
[324874361,1714387838920,-525.01331286,0.0002,4]
[324874363,1714387838930,-8771.98197537,0.0002,2]
[324874365,1714387838939,-151.0,0.0002,2]
[324874367,1714387838948,-151.31843755,0.0002,2]
[324874369,1714387838957,-151.0,0.0002,2]
[324874371,1714387838966,-151.0,0.0002,2]
[324874373,1714387838975,-200.0,0.0002,2]
[324874374,1714387838984,-151.0,0.0002,2]
[324874376,1714387838994,-151.0,0.0002,2]
[324874379,1714387839003,-151.0,0.0002,2]
[324874381,1714387839013,-151.0,0.0002,2]
[324874383,1714387839022,-151.0,0.0002,2]
[324874385,1714387839032,-151.0,0.0002,2]
[324874387,1714387839041,-151.0,0.0002,2]
[324874389,1714387839050,-151.0,0.0002,2]
[324874391,1714387839059,-151.0,0.0002,2]
[324874393,1714387839069,-214.6902989,0.00020317,2]
[324874394,1714387839078,-620.0,0.00020576,2]
[324874396,1714387839087,-587.0,0.00020689,2]
[324874398,1714387839096,-10000.0,0.00020697,3]
[324874400,1714387839106,-151.0,0.00020697,2]
[324874402,1714387839115,-167.443342,0.00020697,2]
[324874404,1714387839125,-151.0,0.00020697,2]
[324874406,1714387839134,-151.0,0.00020697,2]
[324874409,1714387839144,-151.0,0.00020697,2]
[324874411,1714387839153,-151.0,0.00020697,2]
[324874413,1714387839162,-151.0,0.00020697,2]
[324874414,1714387839172,-154.84513939,0.00020912,2]
[324874417,1714387839181,-155.53530169,0.00020912,2]
[324874419,1714387839191,-299.68975861,0.00020912,2]
[324874421,1714387839200,-154.82968734,0.00020912,2]
[324874423,1714387839210,-588.0,0.000213,2]
[324874425,1714387839220,-620.0,0.00021605,2]
[324874427,1714387839229,-381.0,0.000219,2]
[324874429,1714387839238,-1000.812377,0.00021918,2]
[324874431,1714387839247,-1000.812377,0.00021918,2]
[324874432,1714387839256,-1000.812377,0.00021918,2]
[324874434,1714387839265,-1000.812377,0.00021918,2]
[324874436,1714387839274,-2444.77,0.00021918,2]
[324874438,1714387839283,-3865.34,0.00021918,2]
[324874440,1714387839292,-3221.11,0.00021918,2]
[324874442,1714387839303,-2684.26,0.00021918,2]
[324874444,1714387839313,-2236.89,0.00021918,2]
[324874446,1714387839323,-1864.07,0.00021918,2]
[324874448,1714387839332,-1553.39,0.00021918,2]
[324874450,1714387839342,-1294.49,0.00021918,2]
[324874452,1714387839351,-1078.75,0.00021918,2]
[324874454,1714387839360,-898.95,0.00021918,2]
[324874457,1714387839369,-613.1943728,0.00021918,2]
[324874459,1714387839380,-749.13,0.00021918,2]
[324874461,1714387839388,-10000.0,0.00021918,2]
[324874463,1714387839398,-749.13,0.00021918,2]
[324874465,1714387839407,-499.42,0.00021918,2]
[324874467,1714387839416,-416.18,0.00021918,2]
[324874469,1714387839425,-151.0,0.00021918,2]
[324874471,1714387839435,-151.0,0.00021918,2]
[324874473,1714387839444,-151.0,0.00021918,2]
[324874475,1714387839452,-1000.812377,0.00021918,2]
[324874477,1714387839461,-1000.812377,0.00021918,2]
[324874479,1714387839471,-1000.812377,0.00021918,2]
[324874481,1714387839480,-1000.812377,0.00021918,2]
[324874483,1714387839488,-246.92501,0.00021918,2]
[324874485,1714387839498,-151.0,0.00021918,2]
[324874487,1714387839506,-295.6346,0.00021918,2]
[324874489,1714387839516,-2619.76212427,0.00022,5]
[324874491,1714387839524,-159.16700161,0.00022,2]
[324874493,1714387839533,-170.63779224,0.00022,2]
[324874495,1714387839542,-2466.0,0.00022,3]
[324874497,1714387839551,-154.79876161,0.00022,2]
[324874499,1714387839560,-831.45764223,0.000223,2]
[324874500,1714387839571,-750.0,0.00022466,2]
[324874503,1714387839580,-620.0,0.00022685,2]
[324874505,1714387839589,-823.0,0.00022757,2]
[324874507,1714387839598,-417.0,0.00022803,2]
[324874509,1714387839607,-150.0,0.00022803,2]
[324874510,1714387839616,-713.94452202,0.00023,2]
[324874513,1714387839626,-2000.0,0.00023,2]
[324874514,1714387839635,-189.0,0.00023,2]
[324874517,1714387839645,-154.92197065,0.000232,2]
[324874519,1714387839654,-154.88025073,0.000232,2]
[324874521,1714387839665,-1000.812377,0.000232,2]
[324874523,1714387839674,-1000.812377,0.000232,2]
[324874524,1714387839683,-189.0,0.00023288,2]
[324874526,1714387839692,-153.0,0.00023381,2]
[324874528,1714387839700,-153.0,0.00023381,2]
[324874530,1714387839709,-153.0,0.00023381,2]
[324874532,1714387839718,-153.0,0.00023381,2]
[324874534,1714387839727,-306.0,0.00023381,2]
[324874536,1714387839736,-214.6902989,0.00023633,2]
[324874538,1714387839745,-291.838112,0.00023774,2]
[324874540,1714387839753,-620.0,0.0002382,2]
[324874542,1714387839762,-151.0,0.0002382,2]
[324874544,1714387839771,-178.182548,0.000239,2]
[324874546,1714387839780,-5190.2680465,0.000239,2]
[324874548,1714387839789,-200.3189753,0.00023974,2]
[324874550,1714387839798,-306.0,0.00023974,2]
[324874552,1714387839807,-306.0,0.00023974,2]
[324874554,1714387839816,-153.0,0.00023974,2]
[324874556,1714387839826,-153.0,0.00023974,2]
[324874558,1714387839834,-153.0,0.00023974,2]
[324874560,1714387839844,-306.0,0.00023974,2]
[324874561,1714387839852,-306.0,0.00023974,2]
[324874563,1714387839861,-153.0,0.00023974,2]
[324874565,1714387839870,-222.96,0.00024,3]
[324874567,1714387839879,-693.32219262,0.00024,2]
[324874569,1714387839889,-189.0,0.00024164,2]
[324874571,1714387839898,-163.28555011,0.00024601,2]
[324874573,1714387839906,-163.28555011,0.00024629,2]
[324874575,1714387839915,-177.81765597,0.00024643,2]
[324874577,1714387839925,-500.0,0.00024657,2]
[324874579,1714387839933,-508.52,0.00024657,2]
[324874581,1714387839943,-500.0,0.00024658,2]
[324874583,1714387839952,-380.0,0.00024658,2]
[324874585,1714387839961,-200.0,0.00024658,2]
[324874587,1714387839970,-266.92033511,0.00024667,2]
[324874589,1714387839979,-266.92033511,0.00024685,2]
[324874591,1714387839988,-508.52,0.00024712,2]
[324874593,1714387839997,-1000.812377,0.00024765,2]
[324874595,1714387840006,-1000.812377,0.00024765,2]
[324874597,1714387840015,-508.52,0.00024767,2]
[324874599,1714387840024,-371.09245727,0.00024799,2]
[324874601,1714387840034,-508.52,0.00024821,2]
[324874603,1714387840043,-151.0,0.00024857,2]
[324874605,1714387840052,-163.28555011,0.00024867,2]
[324874607,1714387840062,-508.52,0.00024876,2]
[324874609,1714387840072,-1049.63196488,0.00024912,2]
[324874611,1714387840081,-266.92033511,0.00024918,2]
[324874613,1714387840091,-508.52,0.00024931,2]
[324874615,1714387840100,-508.52,0.00024986,2]
[324874617,1714387840109,-250.0,0.00025,3]
[324874619,1714387840119,-605.61102534,0.00025,7]
[324874621,1714387840129,-154.81422293,0.00025,2]
[324874623,1714387840139,-2660.71,0.00025,2]
[324874625,1714387840149,-154.79876161,0.00025,2]
[324874627,1714387840158,-301.51888188,0.00025,2]
[324874629,1714387840168,-359.60299018,0.00025,2]
[324874631,1714387840177,-1835.93152535,0.00025,2]
[324874633,1714387840185,-1049.63196488,0.00025016,2]
[324874635,1714387840194,-1152.0,0.00025033,2]
[324874637,1714387840203,-508.52,0.00025041,2]
[324874638,1714387840212,-177.81765597,0.00025073,2]
[324874640,1714387840221,-508.52,0.00025095,2]
[324874642,1714387840231,-186.17692927,0.00025149,2]
[324874645,1714387840241,-508.52,0.0002515,2]
[324874647,1714387840250,-508.52,0.00025205,2]
[324874649,1714387840260,-1000.812377,0.0002525,2]
[324874650,1714387840269,-1000.812377,0.0002525,2]
[324874652,1714387840278,-508.52,0.0002526,2]
[324874654,1714387840288,-266.92033511,0.000253,2]
[324874656,1714387840299,-508.52,0.00025315,2]
[324874658,1714387840311,-192.15272,0.00025365,2]
[324874660,1714387840322,-508.52,0.00025369,2]
[324874663,1714387840331,-151.0,0.00025371,2]
[324874665,1714387840342,-155.12385227,0.00025371,2]
[324874667,1714387840351,-190.0,0.00025373,2]
[324874669,1714387840360,-266.92033511,0.00025377,2]
[324874671,1714387840369,-266.92033511,0.00025379,2]
[324874673,1714387840379,-1049.63196488,0.00025382,2]
[324874675,1714387840389,-266.92033511,0.00025417,2]
[324874677,1714387840399,-508.52,0.00025424,2]
[324874679,1714387840408,-266.92033511,0.00025439,2]
[324874681,1714387840418,-1049.63196488,0.0002547,2]
[324874683,1714387840428,-508.52,0.00025479,2]
[324874685,1714387840437,-999.0,0.00025479,2]
[324874687,1714387840446,-266.92033511,0.00025505,2]
[324874689,1714387840455,-371.09245727,0.00025506,2]
[324874691,1714387840465,-1049.63196488,0.00025519,2]
[324874693,1714387840475,-508.52,0.00025534,2]
[324874695,1714387840484,-266.92033511,0.0002558,2]
[324874697,1714387840493,-508.52,0.00025589,2]
[324874699,1714387840502,-153.0,0.00025629,2]
[324874701,1714387840511,-508.52,0.00025643,2]
[324874703,1714387840520,-508.52,0.00025698,2]
[324874705,1714387840529,-508.52,0.00025753,2]
[324874707,1714387840538,-266.92033511,0.00025764,2]
[324874709,1714387840547,-508.52,0.00025808,2]
[324874711,1714387840556,-186.17692927,0.00025809,2]
[324874713,1714387840566,-508.52,0.00025863,2]
[324874715,1714387840577,-1000.812377,0.00025917,2]
[324874717,1714387840586,-1000.812377,0.00025917,2]
[324874719,1714387840595,-508.61520726,0.00025917,2]
[324874721,1714387840604,-186.17692927,0.0002594,2]
[324874723,1714387840613,-186.17692927,0.00025941,2]
[324874725,1714387840622,-186.17692927,0.00025948,2]
[324874727,1714387840631,-177.81765597,0.00025983,2]
[324874729,1714387840640,-177.81765597,0.00025998,2]
[324874731,1714387840649,-14465.99,0.00026,2]
[324874733,1714387840660,-1116.6496876,0.00026,2]
[324874736,1714387840670,-500.26,0.00026,14]
[324874737,1714387840679,-1000.812377,0.00026,2]
[324874739,1714387840688,-1000.812377,0.00026,2]
[324874741,1714387840697,-1000.812377,0.00026,2]
[324874743,1714387840707,-1000.812386,0.00026,2]
[324874745,1714387840717,-2673.1589257,0.00026,2]
[324874747,1714387840727,-10000.0,0.00026,2]
[324874749,1714387840736,-16042.01768988,0.00026,2]
[324874751,1714387840745,-805.06024593,0.00026,2]
[324874753,1714387840755,-1049.63196488,0.00026039,2]
[324874755,1714387840764,-371.09245727,0.00026043,2]
[324874757,1714387840773,-266.92033511,0.000261,2]
[324874759,1714387840782,-186.17692927,0.00026147,2]
[324874761,1714387840791,-177.81765597,0.0002624,2]
[324874763,1714387840800,-163.28555011,0.0002624,2]
[324874765,1714387840808,-153.0,0.00026283,2]
[324874767,1714387840817,-153.0,0.00026283,2]
[324874769,1714387840826,-153.0,0.00026283,2]
[324874771,1714387840835,-153.0,0.00026283,2]
[324874773,1714387840844,-153.0,0.00026283,2]
[324874775,1714387840853,-153.0,0.00026283,2]
[324874777,1714387840861,-153.0,0.00026283,2]
[324874778,1714387840870,-153.0,0.00026283,2]
[324874780,1714387840880,-153.0,0.00026283,2]
[324874783,1714387840890,-153.0,0.00026283,2]
[324874785,1714387840899,-371.09245727,0.00026311,2]
[324874787,1714387840907,-371.09245727,0.0002633,2]
[324874789,1714387840917,-266.92033511,0.00026352,2]
[324874791,1714387840926,-177.81765597,0.00026379,2]
[324874792,1714387840935,-266.92033511,0.00026405,2]
[324874794,1714387840944,-371.09245727,0.00026413,2]
[324874796,1714387840953,-163.28555011,0.00026442,2]
[324874798,1714387840962,-14465.99,0.000265,2]
[324874800,1714387840971,-38007.06594319,0.000265,2]
[324874802,1714387840981,-371.09245727,0.00026504,2]
[324874804,1714387840990,-163.28555011,0.00026513,2]
[324874806,1714387840998,-177.81765597,0.00026514,2]
[324874808,1714387841007,-1049.63196488,0.0002655,2]